fUSD/lending_fUSD_20250506
["ID","MTS","AMOUNT","RATE_DAILY","PERIOD"]
[360122987,1746557448531,-500.0,0.00019899,2]
[360122989,1746557448540,-450.0,0.00019899,2]
[360122991,1746557448550,-450.0,0.00019899,2]
[360122993,1746557448559,-374.76472461,0.00019899,2]
[360122995,1746557448570,-504.52315858,0.00019899,2]
[360122997,1746557448580,-418.76601085,0.00019899,2]
[360122999,1746557448589,-450.0,0.00019899,2]
[360123001,1746557448599,-450.0,0.00019899,2]
[360123003,1746557448608,-450.0,0.00019899,2]
[360123005,1746557448619,-450.0,0.00019899,2]
[360123007,1746557448628,-450.0,0.00019899,2]
[360123009,1746557448637,-500.0,0.00019899,2]
[360123011,1746557448647,-450.0,0.00019899,2]
[360123013,1746557448657,-450.0,0.00019899,2]
[360123015,1746557448667,-450.0,0.00019899,2]
[360123017,1746557448677,-450.0,0.00019899,2]
[360123019,1746557448687,-450.0,0.00019899,2]
[360123021,1746557448696,-450.0,0.00019899,2]
[360123023,1746557448706,-450.0,0.00019899,2]
[360123025,1746557448716,-450.0,0.00019899,2]
[360123027,1746557448725,-507.25720724,0.00019899,2]
[360123029,1746557448735,-450.0,0.00019899,2]
[360123031,1746557448744,-289.84,0.00019899,2]
[360123033,1746557448754,-450.0,0.00019899,2]
[360123035,1746557448763,-450.0,0.00019899,2]
[360123037,1746557448773,-450.0,0.00019899,2]
[360123039,1746557448783,-450.0,0.00019899,2]
[360123041,1746557448792,-430.0,0.00019899,2]
[360123043,1746557448802,-470.0,0.00019899,2]
[360123045,1746557448811,-450.0,0.00019899,2]
[360123047,1746557448821,-450.0,0.00019899,2]
[360123049,1746557448831,-221.21,0.00019899,2]
[360123051,1746557448841,-450.0,0.00019899,2]
[360123053,1746557448850,-450.0,0.00019899,2]
[360123055,1746557448860,-375.93,0.00019899,2]
[360123057,1746557448869,-450.0,0.00019899,2]
[360123059,1746557448878,-450.0,0.00019899,2]
[360123061,1746557448888,-279.03,0.00019899,2]
[360123063,1746557448897,-450.0,0.00019899,2]
[360123065,1746557448906,-450.0,0.00019899,2]
[360123067,1746557448916,-450.0,0.00019899,2]
[360123069,1746557448925,-450.0,0.00019899,2]
[360123071,1746557448935,-453.08368277,0.00019899,2]
[360123073,1746557448944,-450.0,0.00019899,2]
[360123075,1746557448953,-549.1755732,0.00019899,2]
[360123077,1746557448963,-383.23,0.00019899,2]
[360123079,1746557448972,-450.0,0.00019899,2]
[360123081,1746557448981,-500.25,0.00019899,2]
[360123083,1746557448990,-450.0,0.00019899,2]
[360123085,1746557449000,-450.0,0.00019899,2]
[360123087,1746557449009,-554.08838263,0.00019899,2]
[360123089,1746557449018,-389.19,0.00019899,2]
[360123091,1746557449027,-347.31363188,0.00019899,2]
[360123093,1746557449037,-450.0,0.00019899,2]
[360123095,1746557449046,-450.0,0.00019899,2]
[360123096,1746557449055,-450.0,0.00019899,2]
[360123097,1746557449065,-450.0,0.00019899,2]
[360123098,1746557449074,-450.0,0.00019899,2]
[360123099,1746557449083,-180.33090409,0.00019899,2]
[360123100,1746557449093,-450.0,0.00019899,2]
[360123102,1746557449103,-300.0,0.00019899,2]
[360123104,1746557449112,-450.0,0.00019899,2]
[360123106,1746557449122,-490.0,0.00019899,2]
[360123108,1746557449131,-396.3838841,0.00019899,2]
[360123110,1746557449141,-450.0,0.00019899,2]
[360123112,1746557449151,-450.0,0.00019899,2]
[360123114,1746557449160,-450.0,0.00019899,2]
[360123116,1746557449169,-450.0,0.00019899,2]
[360123118,1746557449179,-450.0,0.00019899,2]
[360123120,1746557449188,-450.0,0.00019899,2]
[360123122,1746557449197,-309.95473968,0.00019899,2]
[360123124,1746557449207,-450.0,0.00019899,2]
[360123126,1746557449218,-450.0,0.00019899,2]
[360123128,1746557449229,-450.0,0.00019899,2]
[360123130,1746557449238,-720.39,0.00019899,2]
[360123132,1746557449247,-450.0,0.00019899,2]
[360123134,1746557449257,-517.89082003,0.00019899,2]
[360123136,1746557449266,-450.0,0.00019899,2]
[360123138,1746557449275,-450.0,0.00019899,2]
[360123140,1746557449285,-450.0,0.00019899,2]
[360123142,1746557449294,-450.0,0.00019899,2]
[360123144,1746557449304,-450.0,0.00019899,2]
[360123147,1746557449313,-450.0,0.00019899,2]
[360123148,1746557449323,-450.0,0.00019899,2]
[360123151,1746557449332,-450.0,0.00019899,2]
[360123152,1746557449342,-450.0,0.00019899,2]
[360123154,1746557449351,-450.0,0.00019899,2]
[360123156,1746557449360,-450.0,0.00019899,2]
[360123158,1746557449370,-450.0,0.00019899,2]
[360123160,1746557449379,-450.0,0.00019899,2]
[360123162,1746557449388,-450.0,0.00019899,2]
[360123164,1746557449397,-450.0,0.00019899,2]
[360123166,1746557449406,-486.21,0.00019899,2]
[360123168,1746557449415,-450.0,0.00019899,2]
[360123170,1746557449426,-450.0,0.00019899,2]
[360123173,1746557449436,-500.0,0.00019899,2]
[360123174,1746557449446,-450.0,0.00019899,2]
[360123176,1746557449457,-450.0,0.00019899,2]
[360123179,1746557449467,-450.0,0.00019899,2]
[360123180,1746557449478,-450.0,0.00019899,2]
[360123182,1746557449488,-450.0,0.00019899,2]
[360123184,1746557449497,-500.0,0.00019899,2]
[360123186,1746557449506,-450.0,0.00019899,2]
[360123188,1746557449515,-489.87574426,0.00019899,2]
[360123191,1746557449525,-450.0,0.00019899,2]
[360123193,1746557449535,-450.0,0.00019899,2]
[360123195,1746557449544,-450.0,0.00019899,2]
[360123197,1746557449554,-450.0,0.00019899,2]
[360123198,1746557449563,-450.0,0.00019899,2]
[360123201,1746557449573,-450.0,0.00019899,2]
[360123202,1746557449582,-450.0,0.00019899,2]
[360123204,1746557449591,-450.0,0.00019899,2]
[360123206,1746557449601,-450.0,0.00019899,2]
[360123208,1746557449611,-450.0,0.00019899,2]
[360123210,1746557449620,-431.02299155,0.00019899,2]
[360123212,1746557449631,-500.0,0.00019899,2]
[360123214,1746557449640,-450.0,0.00019899,2]
[360123216,1746557449649,-450.0,0.00019899,2]
[360123218,1746557449658,-450.0,0.00019899,2]
[360123220,1746557449668,-12500.0,0.000199,2]
[360123222,1746557449677,-162.41291371,0.000199,2]
[360123224,1746557449686,-2515.56942593,0.000199,2]
[360123227,1746557449705,-300.21196048,0.000199,2]
[360124380,1746557901483,-180.63112451,0.000196,2]
[360124381,1746557906222,-164.62044866,0.000196,2]
[360124382,1746557954653,1098.43,0.0001691,2]
[360124383,1746557954865,1098.43,0.00019174,2]
[360124384,1746557963964,195100.0,0.000194,2]
[360124385,1746558089699,5570.0,0.000194,3]
[360124392,1746558178156,150.0,0.0003,30]
[360124393,1746558249513,192.03087784,0.0003,30]
[360124394,1746558276489,452.04317673,0.0003,30]
[360124395,1746558327203,150.0,0.00017975,2]
[360124396,1746558334957,625.8396471,0.00019498,2]
[360124397,1746558443742,1000.0,0.0001877,2]
[360124404,1746558632114,-151.0,0.00019598,2]
[360124405,1746558632124,-512.97278915,0.00019598,2]
[360124406,1746558632133,-250.0,0.00019598,2]
[360124407,1746558632143,-1000.0,0.00019599,2]
[360124408,1746558632152,-291.36840375,0.00019599,2]
[360124409,1746558632176,-33.93191575,0.00019599,2]
[360124410,1746558632186,-1000.0,0.000196,2]
[360124411,1746558632196,-4524.54511073,0.00019698,2]
[360124412,1746558632206,-150.0,0.00019729,2]
[360124413,1746558632216,-4524.54511073,0.00019733,2]
[360124414,1746558632226,-150.0,0.00019734,2]
[360124415,1746558632235,-150.0,0.00019734,2]
[360124416,1746558632245,-150.0,0.00019736,2]
[360124417,1746558632255,-150.0,0.00019739,2]
[360124418,1746558632265,-150.0,0.00019741,2]
[360124419,1746558632274,-150.0,0.00019749,2]
[360124420,1746558632284,-1200.0,0.00019753,2]
[360124421,1746558632293,-300.0,0.00019753,2]
[360124422,1746558632303,-6454.87746279,0.00019754,2]
[360124423,1746558632315,-19891.69490203,0.00019754,2]
[360124424,1746558632334,-578.26620396,0.00019754,2]
[360124425,1746558632363,-1321.31999955,0.00019754,2]
[360124426,1746558632389,-298.1025574,0.00019754,2]
[360124427,1746558632401,-23808.10621155,0.00019754,2]
[360124484,1746558638076,-1479.81197628,0.00019754,2]
[360124486,1746558638087,-974.93,0.00019754,2]
[360124488,1746558638097,-1320.45,0.00019754,2]
[360124490,1746558638233,-3366.74725681,0.00019754,2]
[360124669,1746558640525,-3735.41987821,0.0001968,2]
[360124671,1746558640535,-16807.91152963,0.00019754,2]
[360124672,1746558640544,-150.0,0.00019756,2]
[360124674,1746558640553,-8598.6796238,0.00019757,2]
[360124676,1746558640563,-242.04284922,0.00019763,2]
[360124678,1746558640572,-150.0,0.00019766,2]
[360124680,1746558640581,-151.0,0.00019768,2]
[360124681,1746558640592,-207.4,0.00019768,2]
[360124683,1746558640601,-275.84,0.0001977,2]
[360124685,1746558640611,-222.84428862,0.00019771,2]
[360124687,1746558640620,-524.44504459,0.00019771,2]
[360124688,1746558640629,-500.0,0.00019771,2]
[360124690,1746558640642,-12130.7314,0.00019772,2]
[360124692,1746558640652,-2848.33,0.00019772,2]
[360124694,1746558640661,-9999.99,0.00019772,2]
[360124695,1746558640670,-9999.99,0.00019772,2]
[360124697,1746558640679,-6307.4376,0.00019772,2]
[360124699,1746558640688,-161.12501997,0.00019773,2]
[360124701,1746558640697,-500.0,0.00019773,2]
[360124702,1746558640707,-500.0,0.00019773,2]
[360124704,1746558640717,-500.0,0.00019773,2]
[360124706,1746558640727,-500.0,0.00019773,2]
[360124708,1746558640736,-186.192354,0.00019773,2]
[360124709,1746558640746,-500.0,0.00019773,2]
[360124711,1746558640755,-500.0,0.00019773,2]
[360124713,1746558640764,-500.0,0.00019773,2]
[360124715,1746558640773,-500.0,0.00019773,2]
[360124717,1746558640782,-500.0,0.00019773,2]
[360124718,1746558640792,-8598.67962379,0.00019773,2]
[360124720,1746558640802,-275.84,0.00019773,2]
[360124722,1746558640811,-150.0,0.00019775,2]
[360124724,1746558640821,-150.0,0.00019778,2]
[360124726,1746558640830,-450.0,0.00019779,2]
[360124727,1746558640839,-450.0,0.00019779,2]
[360124729,1746558640848,-450.0,0.00019779,2]
[360124731,1746558640858,-450.0,0.00019779,2]
[360124733,1746558640867,-150.99,0.0001978,2]
[360124734,1746558640876,-2058.55,0.0001978,2]
[360124736,1746558640885,-21203.2,0.0001978,2]
[360124738,1746558640895,-29999.99,0.0001978,2]
[360124756,1746558641109,-9999.99,0.0001978,2]
[360124758,1746558641118,-9161.25,0.0001978,2]
[360124760,1746558641128,-1000.0,0.00019783,2]
[360124761,1746558641137,-1477.9643,0.00019783,2]
[360124763,1746558641146,-222.84428853,0.00019785,2]
[360124765,1746558641156,-275.84,0.00019787,2]
[360124767,1746558641165,-8598.67962379,0.00019789,2]
[360124768,1746558641174,-200.0,0.0001979,2]
[360124770,1746558641183,-269.27,0.0001979,2]
[360124772,1746558641192,-150.0,0.00019791,2]
[360124774,1746558641201,-150.0,0.00019793,2]
[360124776,1746558641210,-204.14576702,0.00019796,2]
[360124778,1746558641221,-1645.7937,0.00019797,2]
[360124779,1746558641231,-450.0,0.00019797,2]
[360124781,1746558641239,-450.0,0.00019797,2]
[360124783,1746558641249,-450.0,0.00019797,2]
[360124785,1746558641258,-450.0,0.00019797,2]
[360124787,1746558641268,-450.0,0.00019797,2]
[360124789,1746558641277,-450.0,0.00019797,2]
[360124791,1746558641286,-450.0,0.00019797,2]
[360124793,1746558641296,-450.0,0.00019797,2]
[360124795,1746558641305,-450.0,0.00019797,2]
[360124797,1746558641314,-450.0,0.00019797,2]
[360124799,1746558641323,-450.0,0.00019797,2]
[360124801,1746558641332,-788.77,0.00019797,2]
[360124802,1746558641342,-450.0,0.00019797,2]
[360124803,1746558641351,-450.0,0.00019797,2]
[360124804,1746558641360,-450.0,0.00019797,2]
[360124805,1746558641370,-450.0,0.00019797,2]
[360124806,1746558641380,-450.0,0.00019797,2]
[360124807,1746558641389,-450.0,0.00019797,2]
[360124808,1746558641399,-450.0,0.00019797,2]
[360124809,1746558641409,-450.0,0.00019797,2]
[360124810,1746558641419,-204.14576701,0.00019797,2]
[360124811,1746558641428,-450.0,0.00019797,2]
[360124812,1746558641439,-450.0,0.00019797,2]
[360124813,1746558641448,-450.0,0.00019797,2]
[360124814,1746558641458,-450.0,0.00019797,2]
[360124815,1746558641468,-450.0,0.00019797,2]
[360124816,1746558641477,-162.96537,0.00019797,2]
[360124817,1746558641487,-2236.907922,0.00019797,2]
[360124818,1746558641496,-450.0,0.00019797,2]
[360124819,1746558641506,-772.32,0.00019797,2]
[360124820,1746558641517,-5401.548624,0.00019797,2]
[360124821,1746558641527,-2190.189253,0.00019797,2]
[360124822,1746558641536,-225.0,0.00019798,2]
[360124823,1746558641546,-222.84428853,0.000198,2]
[360124824,1746558641555,-158.08935038,0.000198,2]
[360124825,1746558641564,-275.84,0.00019802,2]
[360124827,1746558641575,-8598.67962379,0.00019805,2]
[360124828,1746558641585,-150.0,0.00019809,2]
[360124829,1746558641595,-200.0,0.0001981,2]
[360124831,1746558641605,-275.84,0.00019811,2]
[360124832,1746558641614,-450.0,0.00019811,2]
[360124834,1746558641624,-450.0,0.00019811,2]
[360124836,1746558641633,-12500.0,0.00019812,2]
[360124838,1746558641646,-222.84428853,0.00019814,2]
[360124840,1746558641655,-8598.67962379,0.00019821,2]
[360124842,1746558641664,-12500.0,0.00019821,2]
[360124844,1746558641674,-150.0,0.00019826,2]
[360124846,1746558641684,-275.84,0.00019826,2]
[360124848,1746558641693,-222.84428853,0.00019828,2]
[360124850,1746558641702,-150.0,0.00019829,2]
[360124852,1746558641712,-12500.0,0.0001983,2]
[360124854,1746558641721,-275.84,0.0001983,2]
[360124856,1746558641731,-8598.67962379,0.00019836,2]
[360124858,1746558641740,-2466.50599376,0.00019838,2]
[360124860,1746558641751,-12500.0,0.00019838,2]
[360124862,1746558641761,-2000.0,0.0001984,2]
[360124864,1746558641770,-275.84,0.00019842,2]
[360124866,1746558641779,-222.84428853,0.00019843,2]
[360124868,1746558641789,-275.84,0.00019844,2]
[360124870,1746558641798,-275.84,0.00019844,2]
[360124872,1746558641809,-150.0,0.00019845,2]
[360124874,1746558641819,-12500.0,0.00019847,2]
[360124876,1746558641828,-150.0,0.00019849,2]
[360124878,1746558641838,-8598.67962379,0.00019852,2]
[360124880,1746558641847,-450.0,0.00019854,2]
[360124882,1746558641856,-154.9496455,0.00019854,2]
[360124884,1746558641866,-450.0,0.00019854,2]
[360124886,1746558641876,-450.0,0.00019854,2]
[360124888,1746558641886,-450.0,0.00019854,2]
[360124890,1746558641896,-450.0,0.00019854,2]
[360124892,1746558641905,-490.0,0.00019854,2]
[360124894,1746558641914,-450.0,0.00019854,2]
[360124896,1746558641924,-450.0,0.00019854,2]
[360124898,1746558641933,-450.0,0.00019854,2]
[360124900,1746558641942,-450.0,0.00019854,2]
[360124901,1746558641952,-450.0,0.00019854,2]
[360124903,1746558641961,-454.23893114,0.00019854,2]
[360124905,1746558641970,-470.0,0.00019854,2]
[360124907,1746558641979,-450.0,0.00019854,2]
[360124909,1746558641988,-450.0,0.00019854,2]
[360124911,1746558641998,-450.0,0.00019854,2]
[360124913,1746558642007,-450.0,0.00019854,2]
[360124915,1746558642016,-450.0,0.00019854,2]
[360124917,1746558642026,-250.0,0.00019854,2]
[360124919,1746558642042,-450.0,0.00019854,2]
[360124921,1746558642051,-450.0,0.00019854,2]
[360124923,1746558642060,-450.0,0.00019854,2]
[360124925,1746558642069,-450.0,0.00019854,2]
[360124927,1746558642078,-450.0,0.00019854,2]
[360124929,1746558642089,-450.0,0.00019854,2]
[360124931,1746558642098,-450.0,0.00019854,2]
[360124933,1746558642107,-450.0,0.00019854,2]
[360124935,1746558642116,-450.0,0.00019854,2]
[360124937,1746558642125,-203.85622897,0.00019854,2]
[360124939,1746558642134,-585.53989448,0.00019854,2]
[360124941,1746558642144,-450.0,0.00019854,2]
[360124943,1746558642153,-450.0,0.00019854,2]
[360124945,1746558642162,-450.0,0.00019854,2]
[360124947,1746558642171,-450.0,0.00019854,2]
[360124949,1746558642180,-450.0,0.00019854,2]
[360124951,1746558642190,-450.0,0.00019854,2]
[360124953,1746558642199,-450.0,0.00019854,2]
[360124955,1746558642208,-450.0,0.00019854,2]
[360124957,1746558642217,-450.0,0.00019854,2]
[360124959,1746558642226,-450.0,0.00019854,2]
[360124961,1746558642235,-450.0,0.00019854,2]
[360124963,1746558642244,-450.0,0.00019854,2]
[360124965,1746558642253,-450.0,0.00019854,2]
[360124967,1746558642263,-450.0,0.00019854,2]
[360124969,1746558642272,-450.0,0.00019854,2]
[360124971,1746558642281,-450.0,0.00019854,2]
[360124973,1746558642290,-450.0,0.00019854,2]
[360124975,1746558642299,-450.0,0.00019854,2]
[360124977,1746558642308,-450.0,0.00019854,2]
[360124979,1746558642317,-450.0,0.00019854,2]
[360124981,1746558642326,-596.02278588,0.00019854,2]
[360124982,1746558642335,-265.1254248,0.00019854,2]
[360124984,1746558642345,-468.816192,0.00019854,2]
[360124986,1746558642354,-500.0,0.00019854,2]
[360124988,1746558642363,-450.0,0.00019854,2]
[360124990,1746558642372,-450.0,0.00019854,2]
[360124992,1746558642381,-450.0,0.00019854,2]
[360124994,1746558642390,-450.0,0.00019854,2]
[360124996,1746558642399,-450.0,0.00019854,2]
[360124998,1746558642408,-450.0,0.00019854,2]
[360125000,1746558642417,-450.0,0.00019854,2]
[360125002,1746558642426,-450.0,0.00019854,2]
[360125004,1746558642435,-450.0,0.00019854,2]
[360125006,1746558642444,-450.0,0.00019854,2]
[360125008,1746558642454,-450.0,0.00019854,2]
[360125010,1746558642463,-450.0,0.00019854,2]
[360125012,1746558642473,-450.0,0.00019854,2]
[360125014,1746558642482,-450.0,0.00019854,2]
[360125016,1746558642491,-450.0,0.00019854,2]
[360125018,1746558642502,-450.0,0.00019854,2]
[360125020,1746558642511,-470.0,0.00019854,2]
[360125022,1746558642520,-450.0,0.00019854,2]
[360125024,1746558642529,-450.0,0.00019854,2]
[360125026,1746558642538,-500.0,0.00019854,2]
[360125028,1746558642548,-450.0,0.00019854,2]
[360125030,1746558642557,-450.0,0.00019854,2]
[360125032,1746558642567,-242.00030949,0.00019854,2]
[360125034,1746558642576,-450.0,0.00019854,2]
[360125036,1746558642585,-450.0,0.00019854,2]
[360125038,1746558642594,-450.0,0.00019854,2]
[360125039,1746558642603,-450.0,0.00019854,2]
[360125041,1746558642611,-157.41068815,0.00019854,2]
[360125043,1746558642620,-450.0,0.00019854,2]
[360125045,1746558642629,-450.0,0.00019854,2]
[360125047,1746558642642,-450.0,0.00019854,2]
[360125049,1746558642651,-474.97665069,0.00019854,2]
[360125051,1746558642660,-450.0,0.00019854,2]
[360125053,1746558642669,-450.0,0.00019854,2]
[360125055,1746558642679,-450.0,0.00019854,2]
[360125057,1746558642690,-450.0,0.00019854,2]
[360125059,1746558642699,-450.0,0.00019854,2]
[360125061,1746558642709,-450.0,0.00019854,2]
[360125063,1746558642719,-450.0,0.00019854,2]
[360125065,1746558642729,-450.0,0.00019854,2]
[360125067,1746558642738,-450.0,0.00019854,2]
[360125069,1746558642746,-450.0,0.00019854,2]
[360125071,1746558642755,-450.0,0.00019854,2]
[360125073,1746558642764,-450.0,0.00019854,2]
[360125075,1746558642774,-450.0,0.00019854,2]
[360125077,1746558642783,-450.0,0.00019854,2]
[360125079,1746558642792,-390.10366394,0.00019854,2]
[360125081,1746558642801,-450.0,0.00019854,2]
[360125083,1746558642810,-450.0,0.00019854,2]
[360125084,1746558642819,-450.0,0.00019854,2]
[360125086,1746558642829,-450.0,0.00019854,2]
[360125087,1746558642838,-450.0,0.00019854,2]
[360125089,1746558642848,-450.0,0.00019854,2]
[360125091,1746558642858,-450.0,0.00019854,2]
[360125093,1746558642867,-450.0,0.00019854,2]
[360125095,1746558642876,-450.0,0.00019854,2]
[360125097,1746558642886,-200.5,0.00019854,2]
[360125099,1746558642895,-450.0,0.00019854,2]
[360125101,1746558642905,-450.0,0.00019854,2]
[360125103,1746558642914,-329.44778762,0.00019854,2]
[360125106,1746558642923,-450.0,0.00019854,2]
[360125107,1746558642932,-450.0,0.00019854,2]
[360125109,1746558642942,-450.0,0.00019854,2]
[360125111,1746558642951,-500.0,0.00019854,2]
[360125113,1746558642961,-450.0,0.00019854,2]
[360125115,1746558642972,-450.0,0.00019854,2]
[360125118,1746558642981,-590.37,0.00019854,2]
[360125120,1746558642990,-450.0,0.00019854,2]
[360125122,1746558642999,-166.53,0.00019854,2]
[360125124,1746558643009,-150.0,0.00019855,2]
[360125126,1746558643018,-150.0,0.00019856,2]
[360125128,1746558643027,-526.05923528,0.00019856,2]
[360125130,1746558643036,-529.05300677,0.00019856,2]
[360125132,1746558643045,-460.35614334,0.00019856,2]
[360125135,1746558643055,-12500.0,0.00019856,2]
[360125137,1746558643064,-222.84428853,0.00019857,2]
[360125139,1746558643073,-150.0,0.00019862,2]
[360125141,1746558643083,-229.12963853,0.00019862,2]
[360125143,1746558643092,-150.0,0.00019862,2]
[360125146,1746558643103,-200.0,0.00019864,2]
[360125149,1746558643112,-150.0,0.00019864,2]
[360125152,1746558643121,-12500.0,0.00019865,2]
[360125155,1746558643130,-150.0,0.00019868,2]
[360125160,1746558643139,-8598.67962379,0.00019868,2]
[360125165,1746558643149,-450.0,0.00019869,2]
[360125168,1746558643158,-450.0,0.00019869,2]
[360125171,1746558643167,-500.0,0.00019869,2]
[360125173,1746558643176,-500.0,0.00019869,2]
[360125175,1746558643185,-430.64338978,0.00019869,2]
[360125177,1746558643195,-500.0,0.00019869,2]
[360125179,1746558643204,-500.0,0.00019869,2]
[360125181,1746558643214,-450.0,0.00019869,2]
[360125183,1746558643223,-450.0,0.0001987,2]
[360125185,1746558643232,-450.0,0.0001987,2]
[360125187,1746558643241,-450.0,0.0001987,2]
[360125189,1746558643251,-450.0,0.0001987,2]
[360125190,1746558643260,-450.0,0.0001987,2]
[360125192,1746558643269,-450.0,0.0001987,2]
[360125194,1746558643278,-450.0,0.0001987,2]
[360125196,1746558643287,-450.0,0.0001987,2]
[360125198,1746558643296,-450.0,0.0001987,2]
[360125200,1746558643305,-450.0,0.0001987,2]
[360125202,1746558643314,-788.77,0.0001987,2]
[360125204,1746558643323,-450.0,0.0001987,2]
[360125206,1746558643333,-450.0,0.0001987,2]
[360125208,1746558643342,-450.0,0.0001987,2]
[360125210,1746558643352,-450.0,0.0001987,2]
[360125212,1746558643361,-450.0,0.0001987,2]
[360125214,1746558643370,-450.0,0.0001987,2]
[360125216,1746558643379,-450.0,0.0001987,2]
[360125218,1746558643389,-450.0,0.0001987,2]
[360125220,1746558643398,-450.0,0.0001987,2]
[360125222,1746558643407,-450.0,0.0001987,2]
[360125224,1746558643418,-450.0,0.0001987,2]
[360125226,1746558643427,-450.0,0.0001987,2]
[360125228,1746558643436,-450.0,0.0001987,2]
[360125230,1746558643446,-450.0,0.0001987,2]
[360125232,1746558643455,-450.0,0.0001987,2]
[360125233,1746558643466,-2236.907922,0.0001987,2]
[360125235,1746558643475,-450.0,0.0001987,2]
[360125237,1746558643486,-772.32,0.0001987,2]
[360125239,1746558643496,-5401.548624,0.0001987,2]
[360125241,1746558643506,-2190.189253,0.0001987,2]
[360125243,1746558643515,-451.63601563,0.00019871,2]
[360125245,1746558643525,-452.49506506,0.00019871,2]
[360125247,1746558643534,-453.82586919,0.00019871,2]
[360125249,1746558643543,-450.54443669,0.00019871,2]
[360125251,1746558643551,-450.0,0.00019871,2]
[360125253,1746558643560,-450.0,0.00019871,2]
[360125255,1746558643569,-450.0,0.00019871,2]
[360125257,1746558643578,-450.0,0.00019871,2]
[360125260,1746558643588,-500.0,0.00019871,2]
[360125263,1746558643598,-450.0,0.00019871,2]
[360125265,1746558643607,-450.0,0.00019871,2]
[360125267,1746558643617,-512.01178802,0.00019871,2]
[360125269,1746558643626,-450.0,0.00019871,2]
[360125270,1746558643635,-450.0,0.00019871,2]
[360125272,1746558643648,-450.0,0.00019871,2]
[360125274,1746558643659,-450.0,0.00019871,2]
[360125276,1746558643668,-450.0,0.00019871,2]
[360125278,1746558643678,-470.0,0.00019871,2]
[360125280,1746558643688,-470.00059875,0.00019871,2]
[360125282,1746558643697,-450.0,0.00019871,2]
[360125284,1746558643710,-450.0,0.00019871,2]
[360125286,1746558643720,-450.0,0.00019871,2]
[360125288,1746558643730,-450.0,0.00019871,2]
[360125290,1746558643739,-450.0,0.00019871,2]
[360125292,1746558643748,-450.0,0.00019871,2]
[360125294,1746558643758,-450.0,0.00019871,2]
[360125296,1746558643767,-450.0,0.00019871,2]
[360125298,1746558643777,-450.0,0.00019871,2]
[360125300,1746558643786,-450.0,0.00019871,2]
[360125302,1746558643795,-450.0,0.00019871,2]
[360125304,1746558643805,-450.0,0.00019871,2]
[360125306,1746558643814,-250.0,0.00019871,2]
[360125308,1746558643824,-450.0,0.00019871,2]
[360125310,1746558643833,-457.39953609,0.00019871,2]
[360125312,1746558643844,-450.0,0.00019871,2]
[360125314,1746558643853,-450.0,0.00019871,2]
[360125316,1746558643862,-520.40495282,0.00019871,2]
[360125318,1746558643872,-538.7954801,0.00019871,2]
[360125320,1746558643881,-450.0,0.00019871,2]
[360125322,1746558643890,-194.16728,0.00019871,2]
[360125324,1746558643899,-450.0,0.00019871,2]
[360125326,1746558643908,-450.0,0.00019871,2]